bitfinex-derivatives/quotes_ETHF0:USTF0_20250906
["timestamp","ask_amount","ask_price","bid_price","bid_amount"]
[1757173997703,0.6009,4265.9,4265.4,3.2078]
[1757173997896,0.3565,4265.7,4265.5,0.243]
[1757173998099,0.3565,4265.9,4265.4,3.2078]
[1757173998296,0.495,4265.5,4265.4,3.2078]
[1757173998497,0.495,4265.5,4265.4,3.4508]
[1757173999301,0.7394,4265.5,4265.4,3.2078]
[1757173999509,0.9726,4265.5,4265.4,0.243]
[1757173999701,0.9726,4265.5,4264.9,33.764]
[1757173999702,0.4772,4265.0,4264.9,33.764]
[1757174000003,0.1385,4265.5,4264.9,33.764]
[1757174000004,0.1385,4265.5,4264.9,34.007]
[1757174000193,3.2078,4266.3,4265.4,3.2078]
[1757174000194,0.4799,4266.0,4265.4,3.2078]
[1757174000398,0.3414,4265.9,4265.5,0.243]
[1757174000603,3.5492,4266.3,4265.5,0.243]
[1757174001505,3.7733,4266.3,4265.5,0.243]
[1757174002401,0.42192,4265.8,4265.5,0.243]
[1757174002607,0.1358,4267.0,4265.5,0.243]
[1757174002608,3.3436,4267.5,4267.0,0.1146]
[1757174002798,4.22264,4267.5,4267.4,0.2287]
[1757174003105,0.64589,4267.0,4266.9,0.5789]
[1757174003301,0.64589,4267.0,4266.9,0.8229]
[1757174003702,0.64594,4266.6,4266.5,3.7867]
[1757174003903,0.4573,4266.6,4266.5,0.244]
[1757174004104,0.1358,4266.5,4266.3,3.2078]
[1757174004304,1.01494,4266.5,4266.4,0.244]
[1757174004703,1.35634,4266.5,4266.4,0.244]
[1757174005001,0.98734,4266.5,4266.4,0.8229]
[1757174005596,0.42184,4266.5,4266.4,0.8229]
[1757174006009,0.42184,4266.5,4266.4,4.8229]
[1757174006404,0.3414,4267.3,4266.5,0.1101]
[1757174006609,0.42177,4267.3,4267.2,0.5789]
[1757174006811,0.42177,4267.3,4267.2,0.8229]
[1757174006998,0.42177,4267.3,4267.2,0.5789]
[1757174007203,1.22047,4267.3,4267.2,0.4727]
[1757174007406,0.42177,4267.3,4267.2,0.8229]
[1757174007912,0.42177,4267.3,4267.2,1.0663]
[1757174012118,0.42177,4267.3,4267.2,1.24963819]
[1757174012410,0.42177,4267.3,4267.2,1.0663]
[1757174013305,1.05424,4268.1,4267.2,4.90559186]
[1757174013510,0.7987,4268.1,4268.0,0.4721]
[1757174013815,0.7987,4268.1,4268.0,0.7161]
[1757174015105,0.7987,4268.1,4268.0,1.0663]
[1757174015309,3.2078,4269.1,4268.0,1.0663]
[1757174015606,0.5655,4267.9,4267.8,3.6799]
[1757174015806,0.3414,4268.4,4267.8,4.2741]
[1757174016316,3.2078,4269.1,4267.8,4.2741]
[1757174016513,0.2241,4267.9,4267.8,4.0301]
[1757174016816,0.5655,4267.9,4267.8,4.2741]
[1757174017310,0.3414,4268.4,4267.8,4.2741]
[1757174017711,0.2241,4267.9,4267.8,4.2741]
[1757174018016,0.5655,4267.9,4267.8,4.2741]
[1757174018415,0.5655,4267.9,4267.8,4.0301]
[1757174018619,0.5655,4267.9,4267.8,4.2741]
[1757174018824,0.3414,4267.9,4267.8,4.2741]
[1757174019012,0.3414,4268.4,4267.8,4.2741]
[1757174019316,0.3414,4268.4,4268.3,0.8223]
[1757174019507,0.5655,4268.4,4268.3,1.0663]
[1757174019710,0.7987,4268.4,4268.3,0.7161]
[1757174021613,0.7987,4268.4,4268.3,0.7151]
[1757174022215,0.7987,4268.4,4268.3,1.0653]
[1757174023022,0.7987,4268.4,4268.3,0.7151]
[1757174023718,0.7987,4268.4,4268.3,0.4717]
[1757174023913,0.7987,4268.4,4268.3,0.243]
[1757174024114,0.7987,4268.4,4268.3,0.4717]
[1757174025418,0.7987,4268.4,4268.3,0.7151]
[1757174025622,0.5931,4268.5,4268.4,0.8223]
[1757174025823,0.2241,4268.5,4268.4,0.8223]
[1757174026022,0.5655,4268.5,4268.4,0.8223]
[1757174026225,0.9345,4268.5,4268.4,0.4721]
[1757174026825,0.9345,4268.5,4268.4,0.8223]
[1757174027022,3.2078,4269.1,4268.3,0.243]
[1757174027023,0.3414,4269.0,4268.9,0.4721]
[1757174027324,0.9345,4269.0,4268.9,1.0653]
[1757174027723,0.7987,4269.0,4268.9,1.0653]
[1757174027926,0.3414,4269.4,4268.9,1.0653]
[1757174028125,0.5655,4269.0,4268.9,1.0653]
[1757174028326,0.5655,4269.0,4268.3,3.2078]
[1757174028327,0.5931,4268.5,4268.4,0.2287]
[1757174028528,0.9345,4268.5,4268.4,0.4717]
[1757174029820,0.9345,4268.5,4268.4,0.7186]
[1757174030025,0.1358,4269.0,4268.4,0.7186]
[1757174030225,0.2406,4268.5,4268.4,0.7186]
[1757174030428,0.5909,4268.5,4268.4,1.0781]
[1757174032033,3.2078,4269.2,4268.9,0.8408]
[1757174032332,3.2078,4269.2,4269.0,0.243]
[1757174032333,0.8163,4269.1,4269.0,0.243]
[1757174032530,0.8163,4269.1,4269.0,0.4774]
[1757174032731,0.8163,4269.1,4269.0,0.7243]
[1757174033847,3.2078,4269.2,4268.3,0.3595]
[1757174033848,0.1453,4269.0,4268.3,0.3595]
[1757174034044,0.1453,4269.0,4268.4,1.0838]
[1757174034045,0.5909,4268.5,4268.4,1.0838]
[1757174034530,0.3503,4269.0,4268.9,0.8408]
[1757174034737,0.3503,4269.1,4269.0,0.8408]
[1757174035132,0.5909,4269.1,4269.0,0.8408]
[1757174035739,0.3503,4269.4,4269.3,0.4813]
[1757174035935,0.3503,4269.6,4269.5,0.4813]
[1757174036139,0.5909,4269.6,4269.5,0.8408]
[1757174037748,0.3503,4269.9,4269.6,0.3595]
[1757174037949,0.3503,4269.9,4269.8,0.8408]
[1757174038149,0.5909,4269.9,4269.8,0.8408]
[1757174039252,0.3503,4270.1,4269.7,0.243]
[1757174039549,0.5909,4270.1,4270.0,0.8408]
[1757174039745,0.3503,4270.4,4269.7,3.4508]
[1757174039944,0.5909,4270.4,4270.3,0.8408]
[1757174040147,0.3503,4270.4,4270.3,1.0838]
[1757174040540,0.1453,4271.0,4270.3,1.0838]
[1757174040846,0.1453,4271.0,4270.9,0.2344]
[1757174040847,0.6113,4271.0,4270.9,0.2344]
[1757174041049,0.6113,4271.0,4270.9,0.243]
[1757174041050,0.9616,4271.0,4270.9,0.243]
[1757174041240,0.9616,4271.0,4270.9,0.4774]
[1757174041842,0.9616,4271.0,4270.9,1.0838]
[1757174042644,0.5909,4271.0,4270.9,1.0838]
[1757174043351,0.9616,4271.0,4270.9,0.7243]
[1757174043748,0.9616,4271.0,4270.9,0.4774]
[1757174044856,0.9616,4271.0,4270.9,1.0838]
[1757174046255,0.9616,4271.0,4270.9,0.7243]
[1757174046849,3.2078,4272.2,4271.2,0.3595]
[1757174047045,0.466,4271.3,4271.2,0.8408]
[1757174047351,0.1017,4272.0,4271.3,0.3595]
[1757174047550,0.466,4272.0,4271.9,0.5939]
[1757174047850,0.466,4272.0,4271.9,0.8369]
[1757174048050,0.5677,4272.0,4271.9,0.243]
[1757174048857,0.918,4272.0,4271.9,0.243]
[1757174049051,0.918,4272.0,4271.5,0.4987]
[1757174049249,0.8163,4271.3,4271.2,0.3595]
[1757174049454,0.8163,4271.3,4271.2,0.8369]
[1757174049948,0.8163,4271.3,4271.1,3.2078]
[1757174050258,0.8163,4271.3,4271.2,1.0838]
[1757174050755,0.3503,4271.2,4271.1,3.2078]
[1757174051057,0.466,4271.2,4271.1,4.2916]
[1757174051757,0.8163,4271.2,4271.1,4.2916]
[1757174052556,0.466,4271.2,4271.1,4.2916]
[1757174053665,0.8163,4271.2,4271.1,0.243]
[1757174054358,0.8163,4271.2,4270.7,0.3595]
[1757174054556,0.8163,4271.2,4270.8,0.243]
[1757174054854,0.466,4270.3,4270.2,0.3595]
[1757174055065,0.8163,4270.3,4270.2,0.243]
[1757174055254,0.5909,4270.3,4270.2,1.0838]
[1757174055454,0.2406,4270.3,4270.2,1.0838]
[1757174055656,0.466,4270.3,4270.2,1.0838]
[1757174056052,0.8163,4270.3,4270.2,1.0838]
[1757174056454,0.466,4270.3,4270.2,1.0838]
[1757174056654,0.8163,4270.3,4270.2,0.243]
[1757174056955,0.8163,4269.9,4269.8,33.738]
[1757174057151,0.8163,4269.9,4269.8,33.981]
[1757174058655,0.466,4269.6,4269.5,0.243]
[1757174058857,7.44200001,4269.9,4269.5,1.1996]
[1757174058858,3.2078,4269.9,4269.5,1.1996]
[1757174059059,0.2257,4269.9,4269.8,0.4664]
[1757174059261,0.2257,4269.9,4269.8,1.064]
[1757174059462,3.2078,4270.5,4269.9,0.3546]
[1757174059662,3.6712,4270.5,4270.4,0.2365]
[1757174059862,4.0086,4270.5,4270.4,0.8341]
[1757174060359,0.3374,4270.4,4269.6,3.2078]
[1757174060662,0.2257,4269.2,4269.1,0.821]
[1757174060861,0.2257,4269.2,4269.1,1.064]
[1757174061560,0.4634,4269.2,4269.1,1.064]
[1757174061761,0.8008,4269.2,4269.1,1.064]
[1757174062560,0.8008,4269.2,4269.1,0.5911]
[1757174062870,0.8008,4269.2,4269.1,0.243]
[1757174063960,4.8008,4269.2,4269.1,0.243]
[1757174064563,4.8008,4269.2,4268.6,0.3546]
[1757174064764,0.8008,4269.2,4268.7,0.243]
[1757174064955,0.8008,4269.2,4268.7,0.5976]
[1757174065153,0.4634,4268.8,4268.7,0.8341]
[1757174065358,0.3374,4268.7,4268.5,3.2078]
[1757174065558,0.8008,4268.7,4268.6,0.243]
[1757174065969,0.8008,4268.7,4268.6,0.4795]
[1757174066167,0.8008,4268.7,4268.6,0.8341]
[1757174068061,0.8008,4268.7,4268.6,1.064]
[1757174068262,0.3374,4269.0,4268.6,0.7094]
[1757174068464,0.8008,4269.0,4268.9,0.821]
[1757174068661,0.8008,4269.0,4268.9,1.064]
[1757174069158,0.4634,4269.0,4268.9,1.064]
[1757174069760,0.2257,4269.0,4268.9,1.064]
[1757174069966,0.5631,4269.3,4269.2,0.4664]
[1757174070165,0.8008,4269.3,4269.2,1.064]
[1757174070759,4.8008,4269.3,4268.8,0.3546]
[1757174070969,0.8008,4269.3,4268.9,0.243]
[1757174072667,0.3374,4269.2,4268.9,0.243]
[1757174072867,0.8008,4269.0,4268.9,0.4795]
[1757174073668,0.3374,4269.4,4268.9,1.064]
[1757174073860,3.4335,4269.5,4269.4,0.821]
[1757174074055,3.4335,4269.5,4269.4,1.063]
[1757174074258,4.0086,4269.5,4269.4,1.063]
[1757174074462,4.0086,4269.5,4269.4,0.8331]
[1757174074664,4.0086,4269.5,4269.0,0.1356]
[1757174074665,3.8092,4269.5,4269.3,0.242]
[1757174074867,3.8092,4269.5,4268.6,0.3546]
[1757174074868,0.4634,4268.7,4268.6,0.821]
[1757174075072,0.4634,4268.7,4268.6,1.063]
[1757174076269,0.2257,4268.7,4268.6,1.063]
[1757174076468,0.5631,4269.0,4268.9,0.4664]
[1757174076669,0.5631,4269.0,4268.9,0.821]
[1757174076882,3.5452,4269.5,4269.0,0.1356]
[1757174077076,4.0086,4269.5,4269.4,0.821]
[1757174079462,0.4634,4269.5,4269.4,0.821]
[1757174079868,0.8008,4269.5,4269.4,0.821]
[1757174083570,0.4634,4269.5,4269.4,0.821]
[1757174084674,0.3374,4269.9,4269.4,0.821]
[1757174084870,0.4634,4269.6,4269.5,0.9566]
[1757174085077,0.8008,4269.6,4269.5,0.9566]
[1757174085464,0.8008,4269.6,4269.5,0.821]
[1757174086777,0.8008,4269.6,4269.5,0.9566]
[1757174087884,0.8008,4269.6,4269.5,0.821]
[1757174088366,0.8008,4269.6,4269.5,0.9566]
[1757174088571,0.4634,4269.6,4269.5,0.9566]
[1757174089176,0.2257,4269.6,4269.5,0.9566]
[1757174089577,0.3374,4269.9,4269.5,0.9566]
[1757174089778,0.13956788,4269.8,4269.6,0.3508]
[1757174089976,0.35596788,4269.7,4269.6,0.796]
[1757174090475,0.95676788,4269.7,4269.6,0.796]
[1757174090978,0.59626788,4269.7,4269.6,0.796]
[1757174091179,3.2078,4270.0,4269.6,0.796]
[1757174091180,3.5683,4270.0,4269.6,0.796]
[1757174091375,0.2164,4269.8,4269.7,0.3508]
[1757174091579,0.35607204,4269.8,4269.7,0.796]
[1757174091981,3.2078,4270.0,4269.8,0.3508]
[1757174092184,3.4242,4270.0,4269.9,0.796]
[1757174092691,0.2164,4270.0,4269.9,0.796]
[1757174093178,4.025,4270.5,4270.4,0.5678]
[1757174093377,4.79374775,4270.5,4270.4,0.5678]
[1757174094379,4.16466478,4270.5,4270.4,0.5678]
[1757174094588,3.80416478,4270.5,4270.4,0.796]
[1757174096481,3.6645,4270.5,4270.4,0.796]
[1757174096784,3.4242,4270.5,4270.4,0.796]
[1757174097177,3.2078,4270.5,4270.4,0.796]
[1757174097575,3.2078,4271.0,4270.5,0.1309]
[1757174097781,3.6645,4271.0,4270.9,0.796]
[1757174097980,4.025,4271.0,4270.9,0.796]
[1757174098184,3.6645,4271.0,4270.9,0.796]
[1757174098780,4.163,4271.0,4270.6,0.3508]
[1757174098980,0.8172,4270.3,4270.2,0.5678]
[1757174099579,0.8172,4270.3,4270.0,3.5797]
[1757174099580,0.4567,4270.3,4270.0,3.4488]
[1757174099783,0.8172,4270.2,4270.1,0.5678]
[1757174100695,0.4567,4270.2,4270.1,0.796]
[1757174101983,0.8172,4270.2,4270.1,0.796]
[1757174102385,0.4567,4270.2,4270.1,0.796]
[1757174102586,0.3605,4270.9,4270.2,0.3508]
[1757174102790,0.3605,4270.9,4270.1,0.23418]
[1757174102791,0.4567,4270.9,4270.1,0.3508]
[1757174102997,0.4567,4270.2,4270.1,0.5678]
[1757174103293,0.8172,4270.2,4270.1,1.037]
[1757174103487,0.8172,4270.2,4270.1,0.796]
[1757174103688,0.8172,4270.2,4269.7,33.735]
[1757174103689,0.4567,4269.9,4269.7,34.0858]
[1757174103890,0.3605,4269.8,4269.7,34.0858]
[1757174104091,0.3605,4269.8,4269.7,34.3268]
[1757174104792,0.3605,4269.8,4269.7,33.976]
[1757174105681,0.3605,4269.8,4269.7,33.735]
[1757174105991,0.3605,4269.8,4269.7,33.976]
[1757174106488,0.8172,4269.8,4269.7,0.241]
[1757174108090,5.05141,4269.8,4269.0,3.3434]
[1757174108293,3.2078,4269.9,4269.5,0.1309]
[1757174108497,0.8172,4269.7,4269.6,0.796]
[1757174109792,0.8172,4269.7,4269.6,0.5678]
[1757174110391,0.8172,4269.7,4269.6,0.796]
[1757174111498,0.8172,4269.7,4269.2,0.3508]
[1757174111692,0.8172,4269.2,4269.1,0.458]
[1757174111889,0.8172,4269.2,4269.1,0.6862]
[1757174112291,0.8172,4269.2,4269.1,1.037]
[1757174113396,3.2078,4269.9,4269.5,0.1309]
[1757174113600,3.4242,4269.9,4269.8,0.796]
[1757174113795,3.4242,4269.9,4268.6,3.2078]
[1757174113796,0.4567,4269.3,4268.9,0.3508]
[1757174114099,0.2164,4268.7,4268.6,0.796]
[1757174114292,0.2164,4268.7,4268.6,1.037]
[1757174117903,3.2078,4269.3,4268.6,1.037]
[1757174118098,3.2078,4269.3,4268.7,0.3508]
[1757174118402,4.025,4269.3,4269.2,0.5678]
[1757174119100,3.4242,4269.3,4269.2,0.796]
[1757174119293,3.2078,4269.3,4269.2,0.796]
[1757174119493,3.6491,4269.3,4269.2,0.796]
[1757174119696,3.9855,4269.3,4269.2,0.796]
[1757174120108,3.6491,4269.3,4269.2,0.796]
[1757174120405,3.4283,4269.3,4269.2,0.796]
[1757174120700,3.2078,4269.3,4269.2,0.796]
[1757174122802,0.379,4270.5,4270.4,0.458]
[1757174122803,0.583,4270.5,4270.4,0.458]
[1757174123000,0.583,4270.5,4270.4,0.241]
[1757174123398,0.9194,4270.5,4270.4,0.4651]
[1757174123901,0.9194,4270.5,4270.4,0.699]
[1757174124091,0.4781,4270.5,4270.4,0.9205]
[1757174124292,0.3364,4270.7,4270.4,0.241]
[1757174124502,0.3364,4270.7,4270.6,0.6795]
[1757174124702,0.7777,4270.7,4270.6,0.458]
[1757174126102,0.5569,4270.7,4270.6,0.6795]
[1757174129102,0.8692,4271.5,4271.4,0.458]
[1757174129307,0.8692,4271.5,4271.4,0.699]
[1757174129906,0.8692,4271.5,4271.4,0.241]
[1757174130107,0.8692,4271.5,4271.4,0.4651]
[1757174132405,0.4279,4271.5,4271.4,0.9175]
[1757174132908,0.6484,4271.5,4271.4,0.699]
[1757174133707,0.4279,4271.5,4271.4,0.9175]
[1757174133914,0.6986,4271.5,4271.4,0.9175]
[1757174134305,0.4781,4271.5,4271.4,0.9175]
[1757174134503,0.4744,4272.0,4271.4,0.699]
[1757174134813,0.4744,4272.0,4271.9,0.6765]
[1757174135005,0.6949,4272.0,4271.9,0.9175]
[1757174135308,0.3364,4272.3,4272.2,0.6765]
[1757174135608,0.3364,4272.3,4272.2,1.71273667]
[1757174136311,0.1417,4272.5,4272.2,4.70203667]
[1757174136511,0.3364,4272.5,4272.4,0.6765]
[1757174137099,0.5569,4272.9,4272.8,0.458]
[1757174137303,0.5569,4272.9,4272.8,0.699]
[1757174137503,0.5569,4272.9,4272.8,3.9068]
[1757174137713,1.81393667,4272.9,4272.8,3.6729]
[1757174138810,0.7777,4272.9,4272.8,3.6729]
[1757174139014,0.4413,4272.1,4272.0,3.4319]
[1757174139209,0.7777,4272.1,4272.0,3.9058]
[1757174141108,0.5569,4272.1,4272.0,4.1243]
[1757174141316,0.5569,4272.1,4272.0,3.9058]
[1757174142107,0.5569,4272.1,4272.0,5.16053667]
[1757174142307,0.5569,4272.1,4272.0,4.94203667]
[1757174142507,0.7777,4272.1,4272.0,4.94203667]
[1757174142706,0.7777,4272.1,4272.0,3.2078]
[1757174142912,5.81393667,4272.1,4272.0,0.24]
[1757174143114,5.81393667,4272.1,4270.9,3.6658]
[1757174143115,0.3622,4271.0,4270.9,3.6658]
[1757174143414,0.3622,4271.0,4270.9,4.1253]
[1757174143415,0.4781,4271.0,4270.9,4.1253]
[1757174143915,0.3364,4271.9,4271.0,0.2185]
[1757174144115,0.3364,4271.9,4270.9,7.68294]
[1757174144116,0.5569,4272.4,4272.3,0.6765]
[1757174144416,0.5569,4272.4,4272.3,3.9068]
[1757174144717,0.7777,4272.4,4272.3,3.9068]
[1757174146103,0.1417,4273.0,4272.4,0.6765]
[1757174146308,0.9194,4273.0,4272.9,3.2078]
[1757174146508,0.9194,4273.0,4272.9,3.76895791]
[1757174146914,0.9194,4273.0,4272.9,3.99305791]
[1757174147115,0.9194,4273.0,4272.9,4.22695791]
[1757174147414,0.9194,4273.0,4272.9,3.98595791]
[1757174147614,0.9194,4273.0,4272.9,5.48169458]
[1757174147615,0.3364,4273.0,4272.9,5.48169458]
[1757174148514,0.3364,4273.4,4272.9,5.48169458]
[1757174148819,0.583,4273.5,4273.4,0.458]
[1757174149020,0.583,4273.5,4273.4,1.01915791]
[1757174149216,0.9195,4273.5,4273.4,1.01915791]
[1757174149418,0.9195,4273.5,4273.4,4.22695791]
[1757174154323,0.6987,4273.5,4273.4,4.22695791]
[1757174154521,0.9273,4273.5,4273.4,4.22825791]
[1757174158038,0.9273,4273.5,4273.4,3.76895791]
[1757174158235,0.9273,4273.5,4273.4,3.52795791]
[1757174158535,0.9273,4273.5,4273.4,3.76795791]
[1757174159629,0.9273,4273.5,4273.4,4.22725791]
[1757174160032,0.6987,4273.5,4273.4,4.43825791]
[1757174160224,0.3365,4273.5,4273.4,4.43825791]
[1757174160425,0.3365,4273.9,4273.8,0.4593]
[1757174160636,0.3365,4273.9,4273.8,2.26669458]
[1757174160637,0.96362002,4273.9,4273.8,2.26669458]
[1757174160930,0.5581,4273.9,4273.8,2.26669458]
[1757174161436,0.96372001,4273.9,4273.8,2.26669458]
[1757174161825,0.1417,4274.5,4273.8,2.26669458]
[1757174162030,0.5919,4274.5,4274.4,0.4593]
[1757174162234,0.5919,4274.5,4274.4,1.01945791]
[1757174162424,1.06473853,4274.5,4274.4,1.01945791]
[1757174162632,1.06473853,4274.5,4274.4,2.26669458]
[1757174162633,1.10544417,4274.5,4274.4,2.26669458]
[1757174163626,0.4782,4274.5,4274.4,2.26669458]
[1757174163832,0.1417,4275.0,4274.4,2.05569458]
[1757174164037,0.3365,4274.8,4274.7,0.6703]
[1757174164240,1.18544127,4274.8,4274.7,1.23045791]
[1757174164536,0.3365,4275.1,4274.7,2.26669458]
[1757174164837,0.5914,4275.5,4275.4,0.4593]
[1757174165036,1.21915297,4275.5,4275.4,1.01945791]
[1757174165239,1.55565297,4275.5,4275.4,1.01945791]
[1757174166232,1.32705297,4275.5,4275.4,1.23045791]
[1757174166434,0.62775297,4275.5,4275.4,2.26669458]
[1757174166741,0.96425297,4275.5,4275.4,2.26669458]
[1757174166942,0.62775297,4275.5,4275.4,2.26669458]
[1757174167134,0.6993,4276.0,4275.9,0.4593]
[1757174167333,1.32647851,4276.0,4275.9,1.01945791]
[1757174167536,1.55507851,4276.0,4275.9,1.01945791]
[1757174167841,1.55507851,4276.0,4275.9,0.56015791]
[1757174168429,1.55507851,4276.0,4275.9,0.32015791]
[1757174168631,1.55507851,4276.0,4275.9,0.56015791]
[1757174170337,2.59131518,4276.0,4275.9,0.56015791]
[1757174170530,6.82518518,4276.0,4275.9,0.32015791]
[1757174170731,6.82518518,4276.0,4275.6,0.24]
[1757174170931,1.82293667,4275.7,4275.6,0.24]
[1757174171135,2.45011518,4275.7,4275.6,0.24]
[1757174171839,6.45011518,4275.7,4275.6,0.24]
[1757174172027,6.45011518,4275.7,4274.9,3.2078]
[1757174172333,0.9279,4275.0,4274.9,3.6671]
[1757174172540,0.9279,4275.0,4274.9,4.2625]
[1757174172739,0.9279,4275.0,4274.9,4.0225]
[1757174172935,0.9279,4275.0,4274.9,3.2078]
[1757174173139,1.55437938,4275.0,4274.9,3.4478]
[1757174174434,1.55437938,4275.0,4274.9,0.24]
[1757174175642,1.55437938,4275.0,4274.9,0.4777]
[1757174177239,1.55437938,4275.0,4274.9,1.0547]
[1757174178136,1.55437938,4275.0,4274.9,0.6993]
[1757174179140,1.55437938,4275.0,4274.9,0.4777]
[1757174180137,0.9279,4275.0,4274.9,0.4777]
[1757174180639,0.7867,4275.0,4274.9,1.065]
[1757174180838,0.5811,4275.4,4275.3,0.8021]
[1757174181044,1.44516193,4275.9,4275.8,0.8021]
[1757174181242,1.58171983,4275.9,4275.8,0.8021]
[1757174181637,1.58171983,4275.9,4275.8,0.4517]
[1757174182240,1.58171983,4275.9,4275.8,0.2148]
[1757174182447,1.44523732,4275.9,4275.8,0.2148]
[1757174182832,1.44523732,4275.9,4275.8,0.8021]
[1757174184044,1.44523732,4275.9,4275.7,0.24]
[1757174184351,0.8168,4275.9,4275.7,0.24]
[1757174184853,1.29261693,4275.8,4275.6,3.2078]
[1757174185041,1.4456349,4275.7,4275.5,0.24]
[1757174185242,0.8168,4275.7,4275.5,0.24]
[1757174185842,0.1316,4275.5,4275.4,0.239]
[1757174186043,0.9484,4275.5,4275.4,0.239]
[1757174186248,0.9484,4275.5,4275.4,0.4538]
[1757174186748,0.9484,4275.5,4275.4,0.2148]
[1757174186945,0.9484,4275.5,4275.4,0.4538]
[1757174187549,0.9484,4275.5,4275.4,1.0411]
[1757174187746,0.9484,4275.5,4275.4,0.6907]
[1757174188551,0.9484,4275.5,4275.4,1.0411]
[1757174189453,0.5811,4275.9,4275.8,0.4517]
[1757174189653,1.21198879,4275.9,4275.8,0.8021]
[1757174189854,1.21198879,4275.9,4275.8,1.0411]
[1757174190053,1.44768879,4275.9,4275.8,1.0411]
[1757174190450,1.58470963,4275.9,4275.8,0.6907]
[1757174190653,1.44768879,4275.9,4275.8,0.6907]
[1757174190957,1.58470957,4275.9,4275.8,0.6907]
[1757174191350,1.44768879,4275.9,4275.8,1.0411]
[1757174191549,1.5847703,4275.9,4275.8,1.0411]
[1757174191847,1.5847703,4275.9,4275.8,0.4538]
[1757174192248,1.5847703,4275.9,4275.8,0.239]
[1757174192447,1.5847703,4275.9,4275.8,0.4538]
[1757174192648,1.5847703,4275.9,4275.8,0.239]
[1757174192851,0.4619,4275.4,4275.3,0.239]
[1757174193048,0.8168,4275.4,4275.3,0.239]
[1757174193256,1.58562409,4275.4,4275.3,0.4538]
[1757174194160,1.58562409,4275.4,4275.2,0.239]
[1757174194360,0.1316,4275.5,4274.7,3.2078]
[1757174194361,0.8168,4274.8,4274.7,3.2078]
[1757174194653,0.8168,4274.8,4274.7,3.4468]
[1757174195662,0.8168,4274.8,4274.7,3.6616]
[1757174195959,0.8168,4274.8,4274.7,3.4468]
[1757174196159,0.8168,4274.8,4274.7,3.6616]
[1757174197962,0.8168,4274.8,4274.7,4.2489]
[1757174198356,0.8168,4274.8,4274.7,3.4226]
[1757174198562,0.8168,4274.8,4274.7,3.4468]
[1757174198757,0.8168,4274.8,4274.7,3.6616]
[1757174199360,0.8168,4274.8,4274.7,4.2489]
[1757174200058,0.8168,4274.8,4274.7,3.4468]
[1757174200569,0.8168,4274.8,4274.7,4.2489]
[1757174203773,0.1316,4274.5,4274.1,3.2078]
[1757174204068,0.8168,4274.2,4274.1,4.0099]
[1757174204265,0.8168,4274.2,4274.1,4.2489]
[1757174205165,0.3549,4274.9,4274.4,0.3504]
[1757174205367,0.76738402,4274.8,4274.7,0.8021]
[1757174205574,0.3549,4275.4,4274.8,0.3504]
[1757174205760,0.8168,4275.4,4275.3,0.2148]
[1757174206070,1.58419655,4275.4,4275.3,0.2148]
[1757174206472,1.58419655,4275.4,4275.3,0.4517]
[1757174207477,1.58419655,4275.4,4275.3,0.2148]
[1757174207670,1.58424584,4275.4,4274.9,0.239]
[1757174207870,0.5811,4275.0,4274.9,1.0411]
[1757174208071,1.34854584,4275.0,4274.9,1.0411]
[1757174209274,0.71819653,4275.0,4274.9,1.0411]
[1757174209476,0.13709653,4275.0,4274.9,1.0411]
[1757174209870,0.3173,4275.3,4274.9,0.6907]
[1757174210071,1.30158671,4275.2,4275.1,0.7778]
[1757174210370,1.52448671,4275.2,4275.1,0.7778]
[1757174212970,0.76758671,4275.2,4275.1,0.7778]
[1757174216264,0.2167,4275.2,4275.1,3.9856]
[1757174216473,0.7569,4275.2,4275.1,3.9856]
[1757174216965,0.7569,4275.2,4275.1,3.4468]
[1757174217275,0.90137798,4275.2,4275.1,3.4468]
[1757174217477,0.90137798,4275.2,4275.1,3.6581]
[1757174217677,0.90137798,4275.2,4275.1,0.4503]
[1757174219169,1.53261604,4275.2,4275.1,0.4503]
[1757174220378,1.53261604,4275.2,4275.1,0.239]
[1757174220576,1.53261604,4275.2,4275.1,0.4503]
[1757174221177,0.7569,4274.8,4274.7,0.2113]
[1757174221383,0.7569,4274.7,4274.6,0.2113]
[1757174221577,0.7569,4274.7,4274.6,1.0168]
[1757174223578,0.3173,4274.6,4274.5,3.2078]
[1757174223777,0.534,4274.6,4274.5,3.8806]
[1757174224172,0.534,4274.6,4274.5,4.2246]
[1757174226179,0.3173,4274.9,4274.5,4.3555]
[1757174226480,0.67870744,4274.8,4274.7,0.7778]
[1757174226979,0.36140744,4274.8,4274.7,0.7778]
[1757174227281,0.14470744,4274.8,4274.7,0.7778]
[1757174227982,0.3173,4275.1,4274.7,0.7778]
[1757174228180,0.534,4274.9,4274.8,1.0168]
[1757174228379,1.31173006,4274.9,4274.8,1.0168]
[1757174231281,1.53463006,4274.9,4274.8,1.0168]
[1757174231587,1.38992301,4274.9,4274.8,1.0168]
[1757174231784,1.53463175,4274.9,4274.8,1.0168]
[1757174232081,0.77773175,4274.9,4274.8,1.0168]
[1757174232477,0.14470874,4274.9,4274.8,1.0168]
[1757174234778,0.46200874,4274.9,4274.8,1.0168]
[1757174235888,1.3119847,4274.9,4274.8,1.0168]
[1757174236790,1.5348847,4274.9,4274.8,1.0168]
[1757174237791,1.5348847,4274.9,4274.8,0.239]
[1757174237987,1.5348847,4274.9,4274.8,0.4503]